bitfinex-derivatives/quotes_BNBF0:USTF0_20250115
["timestamp","ask_amount","ask_price","bid_price","bid_amount"]
[1736901050593,0.26170436,702.66,701.01,1.11330263]
[1736901050792,0.26170436,702.65,701.01,1.11330263]
[1736901050993,0.26170436,702.64,701.01,1.11330263]
[1736901051194,0.26170436,702.63,701.01,1.11330263]
[1736901051495,0.28460837,702.72,701.01,1.11330263]
[1736901051496,0.26170436,702.62,701.01,1.11330263]
[1736901051695,0.28460837,702.72,701.01,1.11330263]
[1736901051997,0.26171382,702.71,701.01,1.11330263]
[1736901055198,0.28460837,702.72,701.01,1.11330263]
[1736901055597,0.28460837,702.72,701.04,1.04887004]
[1736901055797,0.28460837,702.72,701.06,0.28528228]
[1736901056397,0.28460837,702.72,701.15,1.04887004]
[1736901056595,0.28460837,702.72,701.17,0.28523753]
[1736901056798,0.26168749,702.71,701.17,0.28523753]
[1736901057098,0.28460837,702.72,701.17,0.28523753]
[1736901057392,0.26168637,702.71,701.17,1.33410757]
[1736901057991,0.28460837,702.72,701.17,1.33410757]
[1736901058393,0.26168675,702.71,701.17,1.33410757]
[1736901058596,0.28460837,702.72,701.18,1.04887004]
[1736901058796,0.26168604,702.71,701.2,0.28522532]
[1736901058992,0.28460837,702.72,701.2,0.28522532]
[1736901059194,0.2616868,702.71,701.2,0.28522532]
[1736901059398,0.2616868,702.71,701.2,1.33409536]
[1736901060301,0.2616868,702.71,701.2,0.28522532]
[1736901060908,0.28460837,702.72,701.2,0.28522532]
[1736901061693,1.0576402,702.96,701.2,0.28522532]
[1736901061898,0.26161956,702.95,701.2,0.28522532]
[1736901062597,0.26161956,702.95,701.36,1.04887004]
[1736901062801,0.26161956,702.94,701.36,1.04887004]
[1736901063003,0.26161956,702.93,701.36,1.04887004]
[1736901063201,1.0576402,702.97,701.36,1.04887004]
[1736901063397,0.26161091,702.96,701.36,1.04887004]
[1736901063598,0.26161091,702.96,701.31,1.04887004]
[1736901063901,0.26161641,702.95,701.31,1.04887004]
[1736901064102,0.26161641,702.94,701.31,1.04887004]
[1736901064301,0.26161641,702.93,701.33,0.28517245]
[1736901064499,0.26161641,703.02,701.33,0.28517245]
[1736901064705,0.26161641,703.01,701.33,0.28517245]
[1736901064901,0.26161641,703.0,701.33,0.28517245]
[1736901065099,0.26161641,702.99,701.33,0.28517245]
[1736901065297,0.26161641,702.98,701.33,0.28517245]
[1736901065503,0.26161641,702.97,701.33,0.28517245]
[1736901065703,0.26161641,702.96,701.33,0.28517245]
[1736901065903,0.26161641,702.95,701.33,0.28517245]
[1736901066101,0.26161641,702.94,701.33,0.28517245]
[1736901066303,0.26161641,702.93,701.33,0.28517245]
[1736901066596,1.0576402,703.1,701.33,0.28517245]
[1736901066904,0.26161107,703.09,701.33,0.28517245]
[1736901068909,0.26161107,703.08,701.33,0.28517245]
[1736901069106,0.26161107,703.07,701.33,0.28517245]
[1736901069303,0.26161107,703.1,701.33,0.28517245]
[1736901069504,1.26916824,703.69,701.33,0.28517245]
[1736901069505,0.2616122,703.06,701.33,0.28517245]
[1736901069704,0.2616122,703.05,701.33,0.28517245]
[1736901069908,0.2616122,703.04,701.33,0.28517245]
[1736901070109,0.2616122,703.03,701.33,0.28517245]
[1736901070309,0.2616122,703.02,701.33,0.28517245]
[1736901070511,1.0576402,703.2,701.33,0.28517245]
[1736901070710,0.5460223,703.19,701.33,1.19317245]
[1736901071007,0.54602634,703.18,701.33,1.19317245]
[1736901071316,0.26160415,703.17,701.33,1.19317245]
[1736901072312,0.26160337,703.16,701.33,1.19317245]
[1736901072510,0.26160337,703.15,701.33,1.19317245]
[1736901072705,0.26160337,703.14,701.33,1.19317245]
[1736901072908,0.26160337,703.13,701.33,1.19317245]
[1736901073109,0.26160337,703.12,701.33,1.19317245]
[1736901073311,0.26160337,703.11,701.33,1.19317245]
[1736901073611,0.26160337,703.1,701.33,1.19317245]
[1736901073812,0.26160337,703.09,701.33,1.19317245]
[1736901074008,0.26160337,703.08,701.33,1.19317245]
[1736901074312,0.28442219,703.18,701.33,1.19317245]
[1736901074505,0.26159415,703.17,701.33,1.19317245]
[1736901075108,0.54603305,703.16,701.33,1.19317245]
[1736901075313,0.26160277,703.15,701.33,1.19317245]
[1736901077911,0.26160961,703.14,701.33,1.19317245]
[1736901078206,0.28443028,703.16,701.33,1.19317245]
[1736901078207,0.26160961,703.13,701.33,1.19317245]
[1736901078414,0.26160961,703.12,701.33,1.19317245]
[1736901078611,0.26160961,703.11,701.33,1.19317245]
[1736901078805,0.26160961,703.1,701.33,1.19317245]
[1736901079012,0.26160961,703.09,701.33,1.19317245]
[1736901079205,0.26160961,703.08,701.33,1.19317245]
[1736901079511,0.26160961,703.07,701.33,1.19317245]
[1736901079712,0.26160961,703.06,701.33,1.19317245]
[1736901079910,0.26160961,703.05,701.33,1.19317245]
[1736901080106,0.26160961,703.04,701.33,1.19317245]
[1736901080310,0.26160961,703.03,701.33,1.19317245]
[1736901080512,0.26160961,703.02,701.33,1.19317245]
[1736901080810,0.28443028,703.16,701.33,1.19317245]
[1736901081012,0.26159706,703.15,701.33,1.19317245]
[1736901081513,0.26159589,703.14,701.33,1.19317245]
[1736901081812,0.26159589,703.13,701.33,1.19317245]
[1736901082012,0.26159589,703.12,701.33,1.19317245]
[1736901082213,0.26159589,703.11,701.33,1.19317245]
[1736901082513,0.26159589,703.1,701.34,1.04887004]
[1736901082813,0.28443028,703.16,701.36,0.28516026]
[1736901083514,0.2615944,703.15,701.36,0.28516026]
[1736901084706,0.2615944,703.15,701.36,1.3340303]
[1736901085613,0.2615944,703.15,701.37,1.04887004]
[1736901085811,0.2615944,703.15,701.39,0.28514806]
[1736901086614,0.26159485,703.14,701.39,0.28514806]
[1736901086810,1.0576402,703.12,701.39,1.3340181]
[1736901087014,0.26159485,703.11,701.39,1.3340181]
[1736901087611,0.26159485,703.11,701.39,0.28514806]
[1736901087911,0.26159485,703.1,701.39,0.28514806]
[1736901088115,0.26159485,703.09,701.39,0.28514806]
[1736901088315,0.26159485,703.08,701.39,0.28514806]
[1736901088515,1.0576402,703.15,701.39,0.28514806]
[1736901088716,0.26158074,703.14,701.39,0.28514806]
[1736901088916,1.0576402,703.12,701.42,1.04887004]
[1736901089217,0.26158074,703.11,701.42,1.04887004]
[1736901089919,1.31922094,703.11,701.5,1.04887004]
[1736901090114,0.26158413,703.1,701.5,1.04887004]
[1736901090318,0.26158413,703.1,701.52,0.28509522]
[1736901090716,1.0576402,703.09,701.52,0.28509522]
[1736901090923,0.26158413,703.08,701.52,0.28509522]
[1736901091821,1.0576402,703.03,701.52,0.28509522]
[1736901092216,0.26160358,703.02,701.52,0.28509522]
[1736901092820,1.0576402,702.98,701.52,1.33396526]
[1736901093416,1.0576402,702.98,701.53,1.04887004]
[1736901094424,0.28443028,703.16,701.33,0.908]
[1736901094425,1.0576402,702.96,701.54,0.28508709]
[1736901095822,1.0576402,702.93,701.54,0.28508709]
[1736901097925,1.0576402,702.92,701.54,0.28508709]
[1736901100424,0.28443028,703.16,701.54,0.28508709]
[1736901100425,1.0576402,702.91,701.54,0.28508709]
[1736901102028,1.0576402,702.91,701.54,1.03008709]
[1736901102231,1.0576402,702.92,701.54,1.03008709]
[1736901103333,1.0576402,703.04,701.57,1.04887004]
[1736901104526,1.0576402,703.08,701.6,1.04887004]
[1736901105339,1.0576402,703.07,701.58,1.04887004]
[1736901106233,1.0576402,703.08,701.54,1.03008709]
[1736901106430,1.0576402,703.08,701.56,0.28507896]
[1736901108751,1.0576402,703.03,701.56,0.28507896]
[1736901108932,0.26160607,703.02,701.56,0.28507896]
[1736901109833,1.0576402,702.92,701.56,0.28507896]
[1736901111938,1.0576402,702.94,701.56,0.28507896]
[1736901113842,1.0576402,702.92,701.56,0.28507896]
[1736901114242,1.0576402,702.92,701.56,1.29407896]
[1736901114642,1.0576402,702.93,701.56,1.29407896]
[1736901115742,1.0576402,702.95,701.56,1.29407896]
[1736901116437,1.0576402,702.92,701.56,1.29407896]
[1736901117740,1.0576402,702.89,701.56,1.29407896]
[1736901118847,0.28443028,703.16,701.56,1.29407896]
[1736901118848,1.0576402,702.9,701.56,2.342949]
[1736901120248,1.0576402,702.88,701.58,1.04887004]
[1736901120447,1.0576402,702.88,701.59,0.28506677]
[1736901120850,1.0576402,702.86,701.61,1.04887004]
[1736901121047,1.0576402,702.86,701.62,0.28505458]
[1736901122245,1.0576402,702.87,701.62,1.33392462]
[1736901123044,0.28443837,703.14,701.62,0.28505458]
[1736901123045,1.0576402,702.89,701.62,0.28505458]
[1736901123246,0.26163204,702.88,701.62,0.28505458]
[1736901123442,1.0576402,702.89,701.62,0.28505458]
[1736901123647,0.26163903,702.88,701.62,0.28505458]
[1736901123851,1.0576402,702.89,701.62,0.28505458]
[1736901124044,0.2616625,702.88,701.62,0.28505458]
[1736901124245,1.0576402,702.82,701.62,0.28505458]
[1736901125250,0.26169304,702.81,701.62,0.28505458]
[1736901125453,1.31933324,702.81,701.62,0.28505458]
[1736901125750,0.26169304,702.8,701.62,0.28505458]
[1736901126650,1.0576402,702.64,701.62,0.28505458]
[1736901126854,0.26169304,702.63,701.62,0.28505458]
[1736901127543,1.0576402,702.64,701.62,0.28505458]
[1736901127751,0.26173206,702.63,701.62,0.28505458]
[1736901128050,0.26173206,702.62,701.62,0.28505458]
[1736901128250,0.26173206,702.61,701.62,0.28505458]
[1736901128551,1.0576402,702.67,701.62,0.28505458]
[1736901128847,1.0576402,702.7,701.62,0.28505458]
[1736901129047,0.26176057,702.69,701.56,1.009]
[1736901129852,0.26176057,702.68,701.56,1.009]
[1736901130046,1.0576402,702.78,701.56,1.009]
[1736901130247,0.26176389,702.77,701.56,1.009]
[1736901130953,0.26176389,702.76,701.56,1.009]
[1736901131152,0.26176392,702.75,701.56,1.009]
[1736901131351,0.26176392,702.74,701.56,1.009]
[1736901131549,0.26176392,702.73,701.56,1.009]
[1736901131749,0.26176392,702.72,701.56,1.009]
[1736901132047,0.26176392,702.71,701.56,1.009]
[1736901132249,0.26176392,702.7,701.56,1.009]
[1736901132448,1.0576402,702.89,701.56,1.009]
[1736901132651,0.26175591,702.88,701.56,1.009]
[1736901133252,0.26175591,702.87,701.56,1.009]
[1736901133455,0.26175591,702.86,701.56,1.009]
[1736901133651,0.26175591,702.85,701.56,1.009]
[1736901133851,0.54631569,702.84,701.56,1.009]
[1736901134153,0.54631974,702.83,701.56,1.009]
[1736901134349,0.26175591,702.82,701.56,1.009]
[1736901135754,0.28457193,702.81,701.56,1.009]
[1736901135950,0.26175469,702.8,701.56,1.009]
[1736901136249,0.28458003,702.79,701.56,1.009]
[1736901136449,0.26175469,702.78,701.56,1.009]
[1736901137558,0.28458812,702.77,701.56,1.009]
[1736901137757,0.26175469,702.76,701.56,1.009]
[1736901140556,0.28459622,702.75,701.56,1.009]
[1736901140757,0.26175469,702.74,701.56,1.009]
[1736901140959,0.28460432,702.73,701.56,1.009]
[1736901141156,0.26175469,702.72,701.56,1.009]
[1736901141359,0.28461242,702.71,701.56,1.009]
[1736901141559,0.26176337,702.7,701.56,1.009]
[1736901141753,0.28462052,702.69,701.56,1.009]
[1736901141953,0.26176337,702.68,701.56,1.009]
[1736901146857,0.28462052,702.69,701.56,1.009]
[1736901147056,0.26177403,702.68,701.56,1.009]
[1736901147858,0.28462052,702.69,701.56,1.009]
[1736901157570,0.26173354,702.68,701.56,1.009]
[1736901157764,0.26173396,702.67,701.56,1.009]
[1736901157965,0.26173396,702.66,701.56,1.009]
[1736901158170,0.28462052,702.69,701.56,1.009]
[1736901158470,1.0576402,702.67,701.56,1.009]
[1736901158669,0.26172971,702.66,701.56,1.009]
[1736901159173,1.0576402,702.63,701.56,1.009]
[1736901160265,0.28462052,702.69,701.56,1.009]
[1736901163373,1.34226072,702.69,701.56,1.009]
[1736901165376,0.28462052,702.69,701.56,1.009]
[1736901169191,0.26170184,702.68,701.56,1.009]
[1736901170379,1.0576402,702.64,701.56,1.009]
[1736901171579,0.28462052,702.69,701.56,1.009]
[1736901171779,0.26170524,702.68,701.56,1.009]
[1736901172176,0.26171127,702.67,701.56,1.009]
[1736901172380,0.28462052,702.69,701.56,1.009]
[1736901172381,0.26171127,702.66,701.56,1.009]
[1736901172684,0.26171127,702.65,701.56,1.009]
[1736901172879,0.26171127,702.64,701.56,1.009]
[1736901173080,0.26171127,702.63,701.56,1.009]
[1736901173281,0.26171127,702.62,701.56,1.009]
[1736901173480,1.0576402,702.68,701.56,1.009]
[1736901173680,0.26171409,702.67,701.56,1.009]
[1736901173875,1.0576402,702.65,701.56,1.009]
[1736901174078,0.26171409,702.64,701.56,1.009]
[1736901175677,1.0576402,702.64,701.56,1.009]
[1736901176778,0.28462052,702.69,701.56,1.009]
[1736901179879,0.26172229,702.68,701.56,1.009]
[1736901180086,0.28462052,702.69,701.56,1.009]
[1736901180483,0.2617169,702.68,701.56,1.009]
[1736901180680,1.0576402,702.67,701.56,1.009]
[1736901181485,0.26172651,702.66,701.56,1.009]
[1736901181987,1.0576402,702.65,701.56,1.009]
[1736901183087,1.0576402,702.6,701.56,1.009]
[1736901183880,1.0576402,702.61,701.56,1.009]
[1736901184986,0.28462052,702.69,701.56,1.009]
[1736901184987,1.0576402,702.63,701.56,1.009]
[1736901185888,1.0576402,702.62,701.56,1.009]
[1736901186683,0.2617464,702.61,701.56,1.009]
[1736901187084,1.0576402,702.62,701.56,1.009]
[1736901187290,1.0576402,702.54,701.56,1.009]
[1736901188089,1.0576402,702.55,701.56,1.009]
[1736901189184,1.0576402,702.53,701.56,1.009]
[1736901190389,1.0576402,702.51,701.56,1.009]
[1736901191286,1.0576402,702.53,701.56,1.009]
[1736901192189,1.0576402,702.51,701.56,1.009]
[1736901192990,0.28462052,702.69,701.56,1.009]
[1736901192991,1.0576402,702.53,701.56,1.009]
[1736901193286,0.26183913,702.52,701.56,1.009]
[1736901193885,1.0576402,702.53,701.56,1.009]
[1736901194088,1.0576402,702.57,701.56,1.009]
[1736901194287,0.26183631,702.56,701.56,1.009]
[1736901194485,0.28467724,702.55,701.56,1.009]
[1736901194791,0.26183631,702.54,701.56,1.009]
[1736901195087,0.28468535,702.53,701.56,1.009]
[1736901195287,0.26183631,702.52,701.56,1.009]
[1736901195492,0.28468535,702.53,701.56,1.009]
[1736901198594,0.26182982,702.52,701.56,1.009]
[1736901198789,0.28468535,702.53,701.56,1.009]
[1736901198991,0.26183365,702.52,701.56,1.009]
[1736901199387,0.26184472,702.51,701.56,1.009]
[1736901199587,0.26184472,702.5,701.56,1.009]
[1736901199792,0.26184472,702.49,701.56,1.009]
[1736901199993,0.26184472,702.48,701.56,1.009]
[1736901200189,0.28468535,702.53,701.56,1.009]
[1736901200190,0.26184472,702.47,701.56,1.009]
[1736901200389,0.26184472,702.46,701.56,1.009]
[1736901200592,0.26184472,702.45,701.56,1.009]
[1736901200793,0.26184472,702.44,701.56,1.009]
[1736901200993,0.26184134,702.43,701.56,1.009]
[1736901201296,0.28468535,702.53,701.56,1.009]
[1736901202390,0.26189133,702.52,701.56,1.009]
[1736901203594,0.28469345,702.51,701.56,1.009]
[1736901203794,0.26189133,702.5,701.56,1.009]
[1736901204096,0.28470156,702.49,701.56,1.009]
[1736901204396,0.26189133,702.48,701.56,1.009]
[1736901204695,0.28470966,702.47,701.56,1.009]
[1736901205094,0.26188707,702.46,701.56,1.009]
[1736901205294,0.28471777,702.45,701.56,1.009]
[1736901205496,0.26188707,702.44,701.56,1.009]
[1736901205898,0.28472588,702.43,701.56,1.009]
[1736901206097,0.26188707,702.42,701.56,1.009]
[1736901206302,0.28473398,702.41,701.56,1.009]
[1736901206601,0.26188707,702.4,701.56,1.009]
[1736901207001,0.28474209,702.39,701.56,1.009]
[1736901207300,0.26188707,702.38,701.56,1.009]
[1736901207502,0.2847502,702.37,701.56,1.009]
[1736901207996,0.26191442,702.36,701.56,1.009]
[1736901208199,0.28475831,702.35,701.56,1.009]
[1736901208499,0.26191442,702.34,701.56,1.009]
[1736901208701,0.28475831,702.35,701.56,1.009]
[1736901228111,0.26185063,702.34,701.56,1.009]
[1736901229608,1.06357604,702.27,701.56,1.009]
[1736901229807,0.26185063,702.26,701.56,1.009]
[1736901230208,0.26188814,702.25,701.56,1.009]
[1736901230408,0.26188389,702.24,701.56,1.009]
[1736901230615,1.06357604,702.26,701.56,1.009]
[1736901230811,0.2618885,702.25,701.56,1.009]
[1736901231118,0.26189271,702.24,701.56,1.009]
[1736901231313,0.28475831,702.35,701.56,1.009]
[1736901231314,1.06357604,702.27,701.56,1.009]
[1736901231614,0.26189376,702.26,701.56,1.009]
[1736901232614,1.06357604,702.25,701.56,1.009]
[1736901232807,0.26189376,702.24,701.56,1.009]
[1736901233012,1.06357604,702.25,701.56,1.009]
[1736901233213,0.26189294,702.24,701.56,1.009]
[1736901234316,1.06357604,702.23,701.56,1.009]
[1736901235609,1.06357604,702.22,701.56,1.009]
[1736901236714,1.06357604,702.27,701.56,1.009]
[1736901238017,0.28475831,702.35,701.56,1.009]
[1736901238018,1.06357604,702.28,701.56,1.009]
[1736901238918,1.06357604,702.31,701.56,1.009]
[1736901239118,0.26188591,702.3,701.56,1.009]
[1736901239618,1.06357604,702.31,701.56,1.009]
[1736901239813,0.26188989,702.3,701.56,1.009]
[1736901240216,1.06357604,702.27,701.56,1.009]
[1736901241922,1.06357604,702.24,701.56,1.009]
[1736901243016,1.06357604,702.23,701.56,1.009]
[1736901244021,1.06357604,702.3,701.56,1.009]
[1736901245718,0.28475831,702.35,701.56,1.009]
[1736901245719,1.06357604,702.27,701.56,1.009]
[1736901246720,1.06357604,702.25,701.56,1.009]
[1736901247521,1.06357604,702.26,701.56,1.009]
[1736901247921,0.28475831,702.35,701.56,1.009]
[1736901248123,0.26194081,702.34,701.56,1.009]
[1736901248819,1.06610787,702.25,701.56,1.009]
[1736901250023,0.26194192,702.24,701.56,1.009]
[1736901250823,0.28480697,702.23,701.56,1.009]
[1736901251023,0.26194192,702.22,701.56,1.009]
[1736901251225,1.06610787,702.18,701.56,1.009]
[1736901251426,0.2848313,702.17,701.56,1.009]
[1736901256122,0.26195544,702.16,701.56,1.009]
[1736901257325,0.2848313,702.17,701.56,1.009]
[1736901257529,0.26195883,702.16,701.56,1.009]
[1736901260229,0.26195538,702.15,701.56,1.009]
[1736901260529,0.2848313,702.17,701.56,1.009]
[1736901260530,0.26195538,702.14,701.56,1.009]
[1736901260730,0.26195538,702.13,701.56,1.009]
[1736901260931,0.26195538,702.12,701.56,1.009]
[1736901261129,0.26195538,702.11,701.56,1.009]
[1736901261328,0.26195538,702.1,701.56,1.009]
[1736901261529,0.26195538,702.09,701.56,1.009]
[1736901261735,0.26195538,702.08,701.56,1.009]
[1736901261925,0.26195538,702.07,701.56,1.009]
[1736901262125,0.26195538,702.06,701.56,1.009]
[1736901262433,0.26195538,702.05,701.56,1.009]
[1736901262629,1.06610787,702.11,701.56,1.009]
[1736901262630,0.26195538,702.04,701.56,1.009]
[1736901262829,1.06610787,702.11,701.56,1.009]
[1736901263032,0.26196546,702.1,701.56,1.009]
[1736901263532,1.06610787,702.08,701.56,1.009]
[1736901263734,0.2619673,702.07,701.56,1.009]
[1736901264434,1.32807517,702.07,701.56,1.009]
[1736901264632,0.2619673,702.06,701.56,1.009]
[1736901265333,0.54687871,702.05,701.56,1.009]
[1736901265535,1.61299064,702.04,701.56,1.009]
[1736901265729,0.5468972,702.03,701.56,1.009]
[1736901265934,0.28488811,702.03,701.56,1.009]
[1736901266234,0.54690425,702.02,701.56,1.009]
[1736901266431,0.28489622,702.01,701.56,1.009]
[1736901273739,0.26202151,702.0,701.56,1.009]
[1736901273940,0.28490434,701.99,701.56,1.009]
[1736901274135,0.26202151,701.98,701.56,1.009]
[1736901276743,0.28490434,701.99,701.56,1.009]
[1736901276937,0.26204602,701.98,701.56,1.009]
[1736901279541,0.28490434,701.99,701.56,1.009]
[1736901279744,0.26203646,701.98,701.56,1.009]
[1736901280343,0.26203669,701.97,701.56,1.009]
[1736901280544,0.26203669,701.96,701.56,1.009]
[1736901280745,0.26203669,701.95,701.56,1.009]
[1736901280939,0.26203669,701.94,701.56,1.009]
[1736901281246,0.28490434,701.99,701.56,1.009]
[1736901281247,0.26203669,701.93,701.56,1.009]
[1736901281448,0.28490434,701.99,701.56,1.009]
[1736901281744,0.26203616,701.98,701.56,1.009]
[1736901282346,0.28490434,701.99,701.56,1.009]
[1736901282645,0.26203719,701.98,701.56,1.009]
[1736901285147,0.28490434,701.99,701.56,1.009]
[1736901285347,0.2620392,701.98,701.56,1.009]
[1736901285744,1.06610787,701.86,701.56,1.009]
[1736901285939,0.2620392,701.85,701.56,1.009]
[1736901287741,0.2620392,701.84,701.56,1.009]
[1736901287945,1.06610787,701.87,701.56,1.009]
[1736901288146,0.26203689,701.86,701.56,1.009]
[1736901288348,0.26203689,701.85,701.56,1.009]
[1736901288549,0.26203689,701.84,701.56,1.009]
[1736901288750,0.26203713,701.83,701.56,1.009]
[1736901289043,0.26203713,701.82,701.56,1.009]
[1736901289243,0.26203713,701.81,701.56,1.009]
[1736901289452,0.26203713,701.8,701.56,1.009]
[1736901289751,1.06610787,701.85,701.56,1.009]
[1736901289949,1.32813548,701.84,701.56,1.009]
[1736901290149,0.26202761,701.83,701.56,1.009]
[1736901290746,1.06610787,701.84,701.56,1.009]
[1736901290948,0.28490434,701.99,701.56,1.009]
[1736901290949,0.26203304,701.83,701.56,1.009]
[1736901291248,1.06610787,701.87,701.56,1.009]
[1736901291449,0.2620281,701.86,701.56,1.009]
[1736901292450,1.32813597,701.86,701.56,1.009]
[1736901292650,0.2620281,701.85,701.56,1.009]
[1736901294052,1.06610787,701.84,701.56,1.009]
[1736901294253,0.2620281,701.83,701.56,1.009]
[1736901294846,1.32813597,701.83,701.56,1.009]
[1736901295053,0.2620281,701.82,701.56,1.009]
[1736901296151,1.06610787,701.81,701.56,1.009]
[1736901296348,0.2620281,701.8,701.56,1.009]
[1736901296552,0.26203099,701.79,701.56,1.009]
[1736901296752,1.06610787,701.81,701.56,1.009]
[1736901296949,0.26203347,701.8,701.56,1.009]
[1736901297155,0.28490434,701.99,701.56,1.009]
[1736901297156,1.06610787,701.78,701.56,1.009]
[1736901297352,0.26203314,701.77,701.56,1.009]
[1736901298156,1.06610787,701.75,701.56,1.009]
[1736901299263,1.06610787,701.7,701.56,1.009]
[1736901301464,1.06610787,701.72,701.56,1.009]
[1736901304962,1.06610787,701.75,701.56,1.009]
[1736901306063,1.06610787,701.74,701.56,1e-08]
[1736901306265,1.06610787,701.74,700.22,0.28562451]
[1736901307269,0.28490434,701.99,700.22,0.28562451]
[1736901307270,1.06610787,701.72,700.22,0.28562451]
[1736901308170,1.06610787,701.75,700.22,0.28562451]
[1736901308765,1.06610787,701.75,700.22,1.11762451]
[1736901309364,1.06610787,701.73,700.22,1.11762451]
[1736901310170,1.06610787,701.75,700.22,1.11762451]
[1736901311469,1.06610787,701.74,700.22,1.11762451]
[1736901312073,0.2850099,701.73,700.22,1.11762451]
[1736901313572,0.26216766,701.72,700.22,1.11762451]
[1736901313974,0.28501802,701.71,700.22,1.11762451]
[1736901314169,0.26216766,701.7,700.22,1.11762451]
[1736901314371,0.28502615,701.69,700.22,1.11762451]
[1736901314567,0.26216766,701.68,700.22,1.11762451]
[1736901314767,0.28503427,701.67,700.22,1.11762451]
[1736901316668,0.26216875,701.66,700.22,1.11762451]
[1736901317772,0.26216967,701.65,700.22,1.11762451]
[1736901318072,0.28503427,701.67,700.22,1.11762451]
[1736901318268,0.26216606,701.66,700.22,1.11762451]
[1736901318468,0.28503427,701.67,700.22,1.11762451]
[1736901318668,0.2621636,701.66,700.22,1.11762451]
[1736901320272,0.28503427,701.67,700.22,1.11762451]
[1736901322069,0.2621367,701.66,700.22,1.11762451]
[1736901323079,0.28503427,701.67,700.22,1.11762451]
[1736901324273,0.26214602,701.66,700.22,1.11762451]
[1736901326076,0.28503427,701.67,700.22,1.11762451]
[1736901333682,0.26217842,701.66,700.22,1.11762451]
[1736901334783,0.26219247,701.65,700.22,1.11762451]
[1736901335087,0.54723893,701.64,700.22,1.11762451]
[1736901335288,1.06610787,701.58,700.22,1.11762451]
[1736901335483,0.26219247,701.57,700.22,1.11762451]
[1736901336384,1.32830034,701.57,700.22,1.11762451]
[1736901336588,0.26219247,701.56,700.22,1.11762451]
[1736901337090,0.26219719,701.55,700.22,1.11762451]
[1736901337282,0.54728428,701.54,700.22,1.11762451]
[1736901337587,0.54730502,701.53,700.22,1.11762451]
[1736901337784,0.26221387,701.52,700.22,1.11762451]
[1736901338187,0.28509928,701.51,700.22,1.11762451]
[1736901338486,0.2622651,701.5,700.22,1.11762451]
[1736901338689,1.06610787,701.44,700.22,1.11762451]
[1736901338888,0.2622651,701.43,700.22,1.11762451]
[1736901339189,0.28513586,701.42,700.22,1.11762451]
[1736901339384,0.2622651,701.41,700.22,1.11762451]
[1736901339589,0.28513586,701.42,700.22,1.11762451]
[1736901339791,1.06610787,701.25,700.22,1.11762451]
[1736901340090,1.06610787,701.25,700.22,0.832]
[1736901340589,0.28513586,701.42,700.22,0.832]
[1736901342489,0.26229812,701.41,700.22,0.832]
[1736901342695,0.54744211,701.4,700.22,0.832]
[1736901342897,0.54744618,701.39,700.22,0.832]
[1736901343195,0.54745274,701.38,700.22,0.832]
[1736901343390,0.54745681,701.37,700.22,0.832]
[1736901343590,0.26230062,701.36,700.22,0.832]
[1736901343897,0.54746494,701.35,700.22,0.832]
[1736901344098,1.06610787,701.26,700.22,0.832]
[1736901344301,0.26230062,701.25,700.22,0.832]
[1736901345093,0.26230062,701.24,700.22,0.832]
[1736901345293,0.26230062,701.23,700.22,0.832]
[1736901345498,0.26230062,701.22,700.22,0.832]
[1736901345798,0.26230062,701.21,700.22,0.832]
[1736901345999,0.2623503,701.2,700.22,0.832]
[1736901346198,0.2623503,701.19,700.22,0.832]
[1736901346399,0.2623503,701.18,700.22,0.832]
[1736901346596,0.2623503,701.17,700.22,0.832]
[1736901346797,0.26237329,701.16,700.22,0.832]
[1736901346997,0.26237329,701.15,700.22,0.832]
[1736901347194,0.26237329,701.14,700.22,0.832]
[1736901347393,0.26237329,701.13,700.22,0.832]
[1736901347597,0.26237329,701.12,700.22,0.832]
[1736901347794,0.26237329,701.11,700.22,0.832]
[1736901348001,0.26237329,701.1,700.22,0.832]
[1736901348194,0.26237329,701.09,700.22,0.832]
[1736901348392,0.26237329,701.08,700.22,0.832]
[1736901348598,0.26237329,701.07,700.22,0.832]
[1736901348802,0.26237329,701.06,700.22,0.832]
[1736901349003,0.26240346,701.05,700.22,0.832]
[1736901349201,0.26240346,701.26,700.22,0.832]
[1736901349398,0.26240346,701.34,700.22,0.832]